Cogmind - Beta 16.1 @@@ ROGUE MODE // 2026.02.27 @ 20:44:01 Player: morimori Result: Destroyed self with Grenade Launcher Performance ------------- Evolutions (0) 0 Regions Visited (2) 400 Robots Destroyed (39) 195 Value Destroyed (684) 684 Prototype IDs (0) 0 Alien Tech Used (0) 0 Bonus (0) 0 TOTAL SCORE: 1279 Bonus ------- None Cogmind --------- Core Integrity 0/250 Matter 270/300 Energy 250/250 System Corruption 0% Temperature Cool (36) Movement Rolling (125) Ox3 Location -10/Mines Parts ------- > --- POWER (1) -------- Ion Engine > --- PROPULSION (2) --- Light Treads Wheel > --- UTILITY (2) ------ Large Storage Unit Light Armor Plating > --- WEAPON (2) ------- Light Assault Rifle Grenade Launcher > --- INVENTORY (15) --- Ion Engine Ion Engine Light Treads Compact Wheel Hover Unit Hover Unit Hover Unit Hover Unit Hover Unit Large Storage Unit High-capacity Matter Pod (200) Assault Rifle Assault Rifle Light Assault Rifle Grenade Launcher Peak State ------------ > --- POWER ------------ Ion Engine > --- PROPULSION ------- Light Treads Compact Wheel > --- UTILITY ---------- Heat Sink Large Storage Unit > --- WEAPON ----------- Assault Rifle Light Assault Rifle > --- INVENTORY -------- Light Ion Engine Light Ion Engine Light Ion Engine Wheel Hover Unit High-capacity Matter Pod Core Shielding Assault Rifle Grenade Launcher Hammer [Rating: 8] Favorites ----------- Power Ion Engine Engine Ion Engine Propulsion Light Treads Treads Light Treads Wheel Compact Wheel Utility Heat Sink Device Heat Sink Storage Large Storage Unit Processor Targeting Computer Protection Light Armor Plating Weapon Light Assault Rifle Energy Gun Medium Laser Ballistic Gun Light Assault Rifle Launcher Grenade Launcher Build | -11 -10 -10 ------- Run | Yrd Mat Min Slots Evolved . | . . . Power . | . . . Propulsion . | . . . Utility . | . . . Weapon . | . . . Parts Attached 27 | 7 17 3 Power 6 | 1 4 1 Engine 6 | 1 4 1 Core . | . . . Reactor . | . . . Propulsion 5 | 2 3 . Treads 3 | 1 2 . Leg . | . . . Wheel 2 | 1 1 . Hover . | . . . Flight . | . . . Utility 8 | 1 6 1 Device 2 | . 2 . Storage 4 | 1 3 . Processor 1 | . 1 . Hackware . | . . . Protection 1 | . . 1 Artifact . | . . . Weapon 8 | 3 4 1 Energy Gun 3 | 3 . . Energy Cannon . | . . . Ballistic Gun 3 | . 3 . Ballistic Cannon . | . . . Launcher 2 | . 1 1 Special Weapon . | . . . Impact Weapon . | . . . Slashing Weapon . | . . . Piercing Weapon . | . . . Special Melee Weapon . | . . . Unidentified Prototypes . | . . . Parts Lost . | . . . Power . | . . . Propulsion . | . . . Utility . | . . . Weapon . | . . . Highest Loss Streak . | . . . To Critical Strikes . | . . . Average Backups 10 | 4 11 15 Power 2 | 1 2 2 Propulsion 3 | 1 3 6 Utility 1 | . 2 2 Weapon 3 | . 3 4 Tool/Special . | . . . Unused Backups 17 | 1 6 10 Power 3 | . 2 1 Propulsion 7 | . . 7 Utility 4 | 1 2 1 Weapon 3 | . 2 1 Tool/Special . | . . . Average Slot Usage (%) 98 | . 97 100 Engine 14 | . 14 14 Treads 14 | . 14 14 Wheel 14 | . 14 14 Device 10 | . 11 8 Storage 14 | . 14 14 Protection 1 | . . 5 Energy Gun 7 | . 9 . Ballistic Gun 20 | . 17 27 Peak Build Rating 8 | 6 8 8 Average Rating 7 | 5 7 8 On Entrance 4 | . 6 8 Avg Prop Armor Cover (%) 10 | 3 11 10 Naked Turns . | . . . Heaviest Build 31 | 11 29 31 Greatest Support 20 | 20 20 10 Greatest Overweight (x) 3 | . 2 3 Average Overweight (x) 1 | . . 2 Largest Inventory Capacity 15 | 8 15 15 Average Capacity 11 | 6 11 15 Most Carried 15 | 7 15 15 Average Carried 10 | 4 11 14 Final Capacity 15 | 8 15 15 Final Carried 15 | 6 15 15 Class Distribution -------------------- 100% | Mutant Dominant Class ---------------- Mutant | -10/Materials Mutant | -10/Mines Resources | -11 -10 -10 ----------- Run | Yrd Mat Min Matter Collected 1156 | 388 571 197 Remotely . | . . . Salvage Created 1072 | 207 704 161 Parts 56 | 8 43 5 Haulers Intercepted 2 | . 2 . Recyclers Shooed 1 | . 1 . Parts Field Recycled . | . . . Retrieved Matter . | . . . Parts Self-Destructed . | . . . Prevented . | . . . Parts Restored . | . . . Kills | -11 -10 -10 ------- Run | Yrd Mat Min Combat Hostiles Destroyed 24 | . 20 4 Guns 12 | . 10 2 AOE 12 | . 10 2 Classes Destroyed 10 | 3 6 1 Worker 5 | 4 1 . Builder 1 | . 1 . Tunneler 1 | 1 . . Hauler 2 | . 2 . Recycler 2 | 1 . 1 Operator 3 | . 3 . Watcher 3 | . 3 . Swarmer 9 | . 9 . Grunt 13 | . 11 2 Assembled 2 | . . 2 Best Kill Streak 9 | 2 9 3 Combat Bots Only 8 | . 8 2 Max Kills in Single Turn 3 | 1 3 1 Gunslinging . | . . . Exploded 3 | . 3 1 Melee . | . . . Uniques/NPCs Destroyed . | . . . Combat | -11 -10 -10 -------- Run | Yrd Mat Min Hostile Shots Fired 90 | . 79 11 Missed 18 | . 15 3 Hits 72 | . 64 8 Melee 1 | . . 1 Projectile 71 | . 64 7 Part Disruptions 1 | . . 1 Damage Taken 806 | . 673 133 Core 258 | . 209 49 Absorbed by Shields . | . . . Core Remaining (%) 100 | 100 . . Volleys Fired 113 | 8 94 11 Largest 2 | 2 2 2 Hottest 90 | 90 90 40 Shots Fired 213 | 16 177 20 Gun 203 | 16 169 18 Cannon . | . . . Launcher 10 | . 8 2 Special . | . . . Kinetic 114 | . 96 18 Thermal 87 | 16 71 . Explosive 10 | . 8 2 Electromagnetic 2 | . 2 . Robot Hit Streak 15 | 4 15 5 Robot Miss Streak 3 | 1 3 2 Penetration Max . | . . . Secondary Targets 1 | . 1 . Max Gunslinging Chain 1 | . 1 . Shots Hit Robots 134 | 10 111 13 Core Hits 68 | 7 51 10 Critical Kills . | . . . Critical Parts Destroyed . | . . . Critical Strikes 1 | 1 . . Burn 1 | 1 . . Melee Attacks . | . . . Impact . | . . . Slashing . | . . . Piercing . | . . . Sneak Attacks . | . . . Combat Hostiles . | . . . Follow-up Attacks . | . . . Damage Inflicted 2210 | 118 1771 321 Guns 1491 | 118 1244 129 Cannons . | . . . Explosions 719 | . 527 192 Melee . | . . . Ramming . | . . . Kinetic 765 | . 636 129 Thermal 698 | 118 580 . Explosive 719 | . 527 192 Electromagnetic 28 | . 28 . Impact . | . . . Slashing . | . . . Piercing . | . . . Highest Corruption . | . . . Average Corruption . | . . . Corruption Purged . | . . . Corruption Blocked . | . . . Overload Shots . | . . . Overflow Damage . | . . . Projectiles . | . . . Explosions . | . . . Melee . | . . . Knockbacks . | . . . Impact . | . . . Kinetic . | . . . Secondary . | . . . Self-Inflicted Damage 64 | . 28 36 Shots 2 | . 1 1 Rammed . | . . . Targets Rammed . | . . . Kicked . | . . . Crushed . | . . . Highest Temperature 224 | 90 224 38 Average Temperature 62 | 37 76 9 Received Heat Transfer 330 | . 258 72 Effects 2 | . 2 . Interference 2 | . 2 . Siege Activations . | . . . Martial Activations . | . . . Shielding Activations . | . . . Robots Disrupted . | . . . Combat Hostiles . | . . . Robots Corrupted . | . . . Combat Hostiles . | . . . Parts Fried . | . . . Impact Corruptions . | . . . Robots Melted 1 | . 1 . Combat Hostiles . | . . . Parts Melted 5 | 1 4 . Heat Transferred 1909 | 384 1525 . Parts Sabotaged . | . . . Parts Stolen . | . . . Parts Stripped . | . . . Power Chain Reactions . | . . . Alert | -11 -10 -10 ------- Run | Yrd Mat Min Maximum Alert Level 1 | . 1 . Low Security (%) 83 | 100 75 100 Level 1 16 | . 24 . Level 2 . | . . . Level 3 . | . . . Level 4 . | . . . Level 5 . | . . . High Security . | . . . Max Security . | . . . Peak Influence 282 | 10 282 50 Initial 48 | . . 48 Average 107 | . 157 13 Influence Increases 748 | 30 648 70 Destroy 0b10 Robot/C 440 | . 400 40 Destroy 0b10 Robot/NC 85 | 30 50 5 Destroy Leader 100 | . 90 10 Successful Hack 16 | . 11 5 Disable Machine 15 | . 15 . Destroy Structure 47 | . 37 10 Lose Combat Pursuer 45 | . 45 . Influence Decreases 746 | 30 522 194 Entered New Map 78 | . . 78 Time Decay 668 | 30 522 116 Squads Dispatched 6 | . 6 . Investigation 3 | . 3 . Extermination . | . . . Reinforcement 3 | . 3 . Assault . | . . . Garrison . | . . . Intercept . | . . . Searches Triggered . | . . . Construction Impeded . | . . . Haulers Reinforced . | . . . Active Scanning Responses . | . . . Cargo Convoy Interrupts . | . . . Stealth | -11 -10 -10 --------- Run | Yrd Mat Min Distress Signals 1 | . 1 . Communications Jammed . | . . . Distress Signals . | . . . Times Spotted 57 | . 37 20 Peak Tracking Total 20 | . 7 20 Tactical Retreats 3 | . 2 1 Traps | -11 -10 -10 ------- Run | Yrd Mat Min Traps Triggered 2 | . 2 . Indirectly . | . . . Trap Hack Attempts . | . . . Triggered . | . . . Disarmed . | . . . Reprogrammed . | . . . Reused . | . . . Traps Extracted . | . . . Installed . | . . . Triggered . | . . . Machines | -11 -10 -10 ---------- Run | Yrd Mat Min Machines Disabled 1 | . 1 . Max in Single Turn 1 | . 1 . Machines Repaired . | . . . Machines Dismantled . | . . . Machines Sabotaged . | . . . Overloaded Fab Kills . | . . . Hacking | -11 -10 -10 --------- Run | Yrd Mat Min Machines Accessed 8 | . 7 1 Terminals 6 | . 5 1 Fabricators . | . . . Repair Stations 1 | . 1 . Recycling Units 1 | . 1 . Scanalyzers . | . . . Garrison Access . | . . . Total Hacks 26 | . 22 4 Successful 7 | . 6 1 Failed 19 | . 16 3 Catastrophic 3 | . 3 . Database Lockouts . | . . . Manual 20 | . 16 4 Terminals 20 | . 16 4 Fabricators . | . . . Repair Stations 3 | . 3 . Recycling Units 3 | . 3 . Scanalyzers . | . . . Garrison Access . | . . . Terminal Hacks 2 | . 2 . Part Schematic 2 | . 2 . Fabricator Hacks . | . . . Repair Station Hacks . | . . . Recycling Unit Hacks 1 | . 1 . Retrieve Components 1 | . 1 . Scanalyzer . | . . . Garrison Access Hacks . | . . . Unauthorized Hacks 4 | . 3 1 Terminals 4 | . 3 1 Botnet 3 | . 2 1 Operators 1 | . 1 . Fabricators . | . . . Repair Stations . | . . . Recycling Units . | . . . Scanalyzers . | . . . Garrison Access . | . . . Data Cores Recovered . | . . . Used . | . . . Hacking Detections 8 | . 7 1 Full Trace Events 1 | . 1 . Feedback Events . | . . . Feedback Blocked . | . . . Robot Schematics Acquired . | . . . Robots Built . | . . . Authchips . | . . . Time . | . . . Total Robot Build Rating . | . . . Part Schematics Acquired 2 | . 2 . Parts Built . | . . . Authchips . | . . . Time . | . . . Total Part Build Rating . | . . . Part Studies Acquired . | . . . Parts Repaired . | . . . Time . | . . . Parts Recycled . | . . . Recycled Matter . | . . . Retrieved Matter . | . . . Retrieved Components 2 | . 2 . Parts Scanalyzed . | . . . Part Schematics Acquired . | . . . Parts Damaged . | . . . Bothacking | -11 -10 -10 ------------ Run | Yrd Mat Min Used RIF Installer . | . . . Robots Hacked . | . . . Non-combat . | . . . Combat . | . . . Robot Hacks Applied . | . . . Relay Couplers Released . | . . . Fabnet Peak Effective % . | . . . Robots Rewired . | . . . Allies Hacked . | . . . Hacks Repelled . | . . . Allies | -11 -10 -10 -------- Run | Yrd Mat Min Total Allies 1 | . . 1 Largest Group 1 | . . 1 Highest-Rated Group 31 | . . 31 Highest-Rated Ally 31 | . . 31 Total Orders . | . . . Ally Attacks 8 | . . 8 Total Damage 103 | . . 103 Kills . | . . . Allies Corrupted . | . . . Allies Melted 1 | . . 1 Intel | -11 -10 -10 ------- Run | Yrd Mat Min Active Infowar (turns) . | . . . Robot Analysis Total . | . . . Derelict Logs Recovered . | . . . Drone Launches . | . . . Drone Recoveries . | . . . Exploration | -11 -10 -10 ------------- Run | Yrd Mat Min Turns Passed 2330 | 332 1558 440 Spaces Moved 1395 | 86 1003 306 Core 1 | 1 . . Treads 210 | 74 136 . Legs . | . . . Wheels 1184 | 11 867 306 Hover . | . . . Flight . | . . . Fastest Speed 50 | 50 100 110 Average Speed 117 | 151 115 115 Slowest Speed 160 | 160 160 125 Overloaded Moves . | . . . Propulsion Burnouts . | . . . Robots Hopped . | . . . Potential Cave-ins . | . . . Cave-ins Triggered . | . . . Exploration Rate (%) 48 | 5 89 50 Regions Visited 2 Branch Regions 1 Pre-discovered Areas 1 | . . 1 Known Exits Taken . | . . . Unknown Exits Taken 2 | 1 1 . Scrap Searched 1 | . . 1 Spaces Dug . | . . . Terrain Destroyed 47 | . 37 10 Melee . | . . . Projectile . | . . . AOE 47 | . 37 10 Terrain Rammed . | . . . Walls Destroyed . | . . . Machines Disabled . | . . . Actions | -11 -10 -10 --------- Run | Yrd Mat Min Total 1882 | 269 1238 375 Wait 297 | 161 84 52 Move 1393 | 85 1002 306 Hop . | . . . Pick Up 24 | 7 16 1 Fast Attach 8 | 6 2 . Attach . | . . . Detach 1 | . 1 . Swap 26 | 1 22 3 Drop 20 | 1 17 2 Fire 113 | 8 94 11 Melee . | . . . Ram . | . . . Kick . | . . . Crush . | . . . Escape Stasis . | . . . Rewire . | . . . Trap . | . . . Miscellaneous . | . . . Route ------- -11/Scrapyard -10/Materials (discovered 3 exits: [*Mat x2] / *Min) -10/Mines History --------- Turn | Location | Event 26 | -11/Scrapyard | Discovered new exit (range 16) 333 | -11/Scrapyard | Entered Materials 342 | -10/Materials | Build established: Mutant 448 | -10/Materials | Destroyed 8 combat bots 707 | -10/Materials | Discovered new exit (range 5) 864 | -10/Materials | Discovered new exit (range 11) 1080 | -10/Materials | Core integrity fell below 50% 1114 | -10/Materials | Core integrity fell below 20% 1192 | -10/Materials | Discovered new exit (range 16) 1891 | -10/Materials | Entered Mines 1932 | -10/Mines | Escorted by a lone wolf Derelict 1943 | -10/Mines | Met a Derelict bent on vengeance 1952 | -10/Mines | Learned location of Storage (-7) 2300 | -10/Mines | Assembled infested the area 2331 | -10/Mines | Destroyed self with Grenade Launcher Last Messages --------------- 02187_ Acquired 63 matter. 02192_ Dropped Heat Sink. 02193_ Acquired Com. Wheel. 02217_ Acquired 4 matter. 02240_ Connecting with Terminal... 02240_ Current location identified: Mines >>Trojan(Botnet) Trojan loaded successfully. Testing... Terminal linked with 0 systems. Awaiting botnet instructions. 02259_ Searching scrap... 02259_ Found Lgt. Armor Plating. 02259_ Found Terrain Scanner. 02259_ Found Sensor Array. 02259_ Found 36 Matter. 02300_ ALERT: Infestation in the mines, dispatching Demolisher response squad. 02329_ as-09691 destroyed. 02331_ as-36322 destroyed. Map ----- +----------------------------------------------------+ | | | | | | | | | | | | | | | | | | | | | | | | | | | ?????????????????????????????????????????????????? | | ?????????????????????????????????????######????### | | ????????????????????????????????????## ##?### # | | ???????????????????????????????????## ### | | ????????#?????????????????????????## | | ????????# ######???????????### | | ???????# #??????????## | | ??? " ### #??????????# | | ???# ##??????# #??????????# | | ??????????????????# #??????????# | | ??????????????????# #??######??# | | ??????????????????#a#### #### | | ?????????????????## @ ## ### | | ?????????????????# a%a ##?## ### | | ????????????????# a k t##???#####?## | | ????????????????## ### ##???????????# | | ??????????????? ######??## #????????????? | | ??????????????#### ?????????# ##????????????? | | ?????????????????# ?????????# #####?????????????? | | ????????????????? ?????????# #?????????????????? | | ?????????????????##?????????# #???????????????### | | ????????????????????????????# #???????????????#=[ | | ????????????????????????????# #???????????????#%# | | ????????????????????????????# #???????????????#=# | | ????????????????????????????# #?####??????????#=# | | ????????????????????????????# ### ##?????????# # | | ????????????????????????????# ## !########### # | | ???????????????????????????? ## [=%=* # | | ???????????????????????????? ?# ########## ## | | ?????????????????????????????#??## #????????# ## | | ?????????????????????????????????# #????????# | | ?????????????????????????????????# #????????#### | | ????????????????????????????????## #???????????? | | ???????????????????????????###### #??????????## | | ????????????????????# #?????????## | | ???????????????????????????####### #????????# | | ?????????????????????????????????## ???????## | +----------------------------------------------------+ Best States ------------- Heat Dissipation 35 Energy Generation 10 Energy Capacity 250 Matter Stores 300 Matter Capacity 300 Sight Range 16 Terrain Scan Density 10 Armor Coverage 150 Evasion (%) 40 Targeting Accuracy 5 Recoil Reduction 1 Item Schematics ----------------- Hcp. Storage Unit | -10/Materials | Hacked Huge Storage Unit | -10/Materials | Hacked Robot Schematics ------------------ None Fabricated ------------ Nothing Repaired ---------- Nothing Studied --------- None Alien Tech Used ----------------- None Achievements -------------- None Challenges ------------ None Game ------ Seed RegenerativeHardenedSlayer Manual? 0 Play Time 00:18:23 Cumulative 494.7 hours Start 2026.02.27 @ 12:11:27 End 2026.02.27 @ 20:44:01 Sessions 1 Manual Loads 0 Difficulty Rogue Special Mode None Game No. 236 Rogue 236 Adventurer 0 Explorer 0 Win Type - Total 8 Types 6/0/1/0/0/0/1/0/0/0 Lore% 69 Gallery% 70 Achievement% 47 Wizard Run 0 Options --------- Layout 0 ASCII 0 Keyboard 1 Movement Vi Keybinds 0 Fullscreen 2 Font 18/SmallcapsGlow Map View 76x50 Zoom Use 0% Tactical HUD 1 Map Filters NONE Filters NONE Steam 1 RUN: 24f86182-51cb-4d5d-9770-d84e4843c1fe